bitfinex-derivatives/quotes_ETHF0:USTF0_20240927
["timestamp","ask_amount","ask_price","bid_price","bid_amount"]
[1727426650722,1.49,2664.9,2664.5,3.2454832]
[1727426651029,1.49,2664.9,2664.7,0.37517]
[1727426651229,0.3827,2664.8,2664.6,1.14878]
[1727426651427,0.3827,2664.8,2664.7,0.37518]
[1727426651822,0.3827,2664.8,2664.5,0.4128832]
[1727426652023,1.49,2664.7,2664.5,0.4128832]
[1727426652228,2.252,2664.7,2664.5,0.4128832]
[1727426652427,1.49,2664.6,2664.5,0.0376832]
[1727426653227,1.49,2664.6,2664.5,0.4128932]
[1727426653426,1.49,2664.6,2664.5,0.0376832]
[1727426653924,2.252,2664.7,2664.5,0.4128932]
[1727426655129,0.3728,2664.7,2664.6,0.37519]
[1727426655334,0.3827,2664.8,2664.7,0.37518]
[1727426655530,0.3827,2664.8,2664.6,0.76978]
[1727426655728,0.3827,2664.8,2664.7,0.37518]
[1727426657038,0.7787,2665.0,2664.8,0.37516]
[1727426657227,1.1531,2665.0,2664.8,0.37516]
[1727426658130,1.1531,2665.0,2664.6,1.8846]
[1727426658131,1.1531,2665.0,2664.7,0.37517]
[1727426658939,1.49,2664.9,2664.7,0.37517]
[1727426659137,1.49,2664.8,2664.6,0.37519]
[1727426659329,1.49,2664.8,2664.5,0.0376832]
[1727426659731,1.1531,2665.0,2664.5,0.0376832]
[1727426659941,0.7608,2665.0,2664.8,1.49]
[1727426660239,0.3744,2665.0,2664.9,0.37515]
[1727426660441,0.3817,2665.2,2664.8,1.49]
[1727426660626,0.3767,2665.1,2665.0,0.37514]
[1727426661439,0.3767,2665.1,2665.0,0.3782]
[1727426662941,0.3767,2665.1,2664.6,5.0957]
[1727426662942,0.3767,2665.1,2664.7,0.37517]
[1727426663146,1.49,2665.0,2664.7,0.77017]
[1727426664144,1.49,2665.0,2664.8,0.37516]
[1727426665144,1.8667,2665.1,2664.8,0.37516]
[1727426665544,1.8667,2665.1,2664.8,3.58296]
[1727426666043,1.8667,2665.1,2664.8,3.2078]
[1727426667045,1.8667,2665.1,2664.8,3.58296]
[1727426668348,1.8667,2665.1,2664.8,3.2078]
[1727426668535,1.8667,2665.1,2664.8,3.58296]
[1727426668736,1.8667,2665.1,2664.9,0.37514]
[1727426669844,1.8667,2665.1,2664.8,3.58296]
[1727426671041,1.8667,2665.1,2664.9,0.37514]
[1727426671244,0.3767,2665.1,2664.9,0.37514]
[1727426672349,0.3767,2665.1,2664.8,3.2078]
[1727426672545,0.3767,2665.1,2664.9,0.37514]
[1727426673755,0.3767,2665.1,2665.0,0.37514]
[1727426674049,0.3803,2665.3,2665.1,0.37512]
[1727426674237,0.7702,2665.3,2665.1,0.37512]
[1727426675149,0.7702,2665.3,2665.2,0.4069]
[1727426677446,3.2078,2665.8,2665.2,0.4069]
[1727426677648,1.11756,2665.6,2665.2,1.5854]
[1727426677855,0.7425,2665.6,2665.2,1.2103]
[1727426678049,0.7425,2665.6,2665.4,0.37508]
[1727426678247,0.7425,2665.6,2665.2,1.2103]
[1727426679250,0.7425,2665.6,2665.3,0.37509]
[1727426680041,0.7425,2665.6,2665.2,1.5854]
[1727426680246,0.7425,2665.6,2665.3,0.37508]
[1727426680953,0.7425,2665.6,2665.3,1.49]
[1727426684960,0.7425,2665.6,2665.3,1.86509]
[1727426686361,0.7425,2665.6,2665.3,1.49]
[1727426686658,0.7425,2665.6,2665.3,1.86508]
[1727426687959,0.7425,2665.6,2665.3,1.49]
[1727426688162,0.7425,2665.6,2665.3,1.86509]
[1727426688461,0.7425,2665.6,2665.3,1.49]
[1727426688657,0.7425,2665.6,2665.3,1.86509]
[1727426689562,0.7425,2665.6,2665.3,0.37509]
[1727426690358,1.49,2665.5,2665.2,0.8027]
[1727426690953,1.49,2665.5,2665.2,1.17781]
[1727426691252,1.49,2665.5,2665.2,1.1778]
[1727426691955,1.86507,2665.5,2665.2,0.4069]
[1727426694959,1.49,2665.5,2665.2,0.4069]
[1727426695159,1.49,2665.5,2665.2,0.78201]
[1727426695550,0.7425,2665.6,2665.4,0.37507]
[1727426695954,0.7425,2665.6,2665.4,0.37508]
[1727426705066,0.7425,2665.6,2665.5,0.37507]
[1727426705267,0.7425,2665.6,2665.3,0.7956]
[1727426705760,1.86509,2665.4,2665.1,3.2078]
[1727426705961,0.3929,2665.3,2665.1,3.2078]
[1727426706359,0.3889,2665.2,2665.1,3.2078]
[1727426706757,0.3889,2665.2,2665.1,3.58292]
[1727426706961,0.74435,2665.6,2665.2,0.3751]
[1727426707165,0.3889,2665.4,2665.2,0.7683]
[1727426707360,0.3889,2665.4,2665.2,1.1377]
[1727426707561,0.3889,2665.4,2665.3,0.37509]
[1727426707762,0.3889,2665.4,2665.2,1.5128]
[1727426708767,0.3889,2665.4,2665.3,0.37509]
[1727426709063,0.3693,2665.6,2665.3,1.49]
[1727426709266,0.7679,2665.6,2665.3,1.49]
[1727426709467,0.7679,2665.6,2665.3,1.86508]
[1727426709671,0.7679,2665.6,2665.4,0.37507]
[1727426712874,0.7679,2665.6,2665.5,0.37507]
[1727426713371,0.7679,2665.6,2665.4,0.37508]
[1727426713572,0.7679,2665.6,2665.3,1.86508]
[1727426714068,0.7679,2665.6,2665.4,0.37508]
[1727426715364,0.7679,2665.6,2665.3,1.86509]
[1727426715758,0.7679,2665.6,2665.2,4.3455]
[1727426715759,0.37507,2665.5,2665.2,4.3455]
[1727426716666,0.37507,2665.5,2665.2,3.96441]
[1727426717771,2.63296,2665.6,2665.2,3.96441]
[1727426718369,2.63296,2665.6,2665.3,0.37509]
[1727426718973,0.7679,2665.6,2665.2,4.3749]
[1727426719567,0.7679,2665.6,2665.3,0.37508]
[1727426719768,0.7679,2665.6,2665.5,0.37507]
[1727426720066,0.3986,2665.6,2665.5,0.37507]
[1727426721374,3.58283,2665.8,2665.2,4.3749]
[1727426721375,3.2078,2665.8,2665.6,0.37504]
[1727426721879,3.2078,2665.8,2665.7,0.78354]
[1727426722467,3.2078,2665.8,2665.7,0.4085]
[1727426724073,3.58282,2665.8,2665.7,0.4085]
[1727426726279,0.37502,2665.8,2665.7,0.4085]
[1727426726480,3.2078,2665.8,2665.7,0.4085]
[1727426727575,1.49,2666.0,2665.7,0.4085]
[1727426727772,5.41595595,2666.3,2665.8,4.6978]
[1727426727973,5.80825595,2666.7,2666.6,0.37491]
[1727426728172,3.58267,2667.0,2666.6,1.86491]
[1727426728173,0.37,2666.9,2666.6,1.86491]
[1727426728581,0.37,2666.9,2666.7,0.4056]
[1727426728582,5.27630787,2666.9,2666.7,0.4056]
[1727426729075,0.37,2666.9,2666.8,1.49]
[1727426729274,4.90630787,2667.0,2666.8,1.49]
[1727426729480,0.75663,2667.2,2666.8,1.49]
[1727426729777,5.66293787,2667.2,2666.8,1.49]
[1727426730176,0.75663,2667.2,2666.8,1.49]
[1727426730382,0.37484,2667.1,2666.8,1.49]
[1727426732184,0.75663,2667.2,2666.8,1.49]
[1727426733191,0.37484,2667.1,2666.8,1.49]
[1727426734189,0.3818,2667.2,2666.8,1.49]
[1727426734576,0.37485,2667.1,2666.8,1.49]
[1727426734981,0.37485,2667.0,2666.8,1.49]
[1727426735280,1.49,2667.0,2666.4,0.77144]
[1727426735481,0.37488,2666.9,2666.4,2.63444]
[1727426735883,0.37488,2666.9,2666.4,2.63443]
[1727426737289,0.37488,2666.9,2666.6,1.49]
[1727426738475,0.37486,2667.0,2666.6,1.49]
[1727426738784,1.49,2667.1,2666.6,4.6978]
[1727426738785,1.86485,2667.1,2666.6,4.6978]
[1727426738980,0.37485,2667.1,2666.6,4.6978]
[1727426739186,0.37485,2667.1,2666.7,1.8649]
[1727426739692,3.66959,2667.5,2667.0,1.49]
[1727426739988,3.66959,2667.5,2666.8,3.7496]
[1727426739989,1.17988,2667.6,2667.2,1.86482]
[1727426740192,0.37476,2667.8,2667.4,1.49]
[1727426740385,0.37476,2667.8,2667.3,0.37481]
[1727426740581,0.785,2667.9,2667.5,0.37477]
[1727426740984,1.15973,2667.9,2667.5,0.37477]
[1727426741184,0.785,2667.9,2667.4,0.3748]
[1727426741379,0.37474,2667.8,2667.3,3.5826]
[1727426741589,0.37474,2667.8,2667.3,0.3748]
[1727426741800,0.37474,2667.8,2667.3,3.5826]
[1727426742683,0.37474,2667.8,2667.3,3.58261]
[1727426743085,1.15974,2667.9,2667.4,0.3748]
[1727426743393,0.37475,2667.8,2667.3,3.58261]
[1727426743687,1.15973,2667.9,2667.4,0.37479]
[1727426744482,0.37474,2667.8,2667.3,3.58261]
[1727426745195,0.37474,2667.8,2667.3,0.37481]
[1727426745485,0.37474,2667.8,2667.3,3.58261]
[1727426745898,0.37474,2667.8,2667.4,0.3748]
[1727426746394,0.37474,2667.8,2667.3,3.58261]
[1727426746583,1.15973,2667.9,2667.4,0.3748]
[1727426746789,0.37475,2667.8,2667.3,3.58261]
[1727426747489,0.37475,2667.8,2667.3,3.2078]
[1727426747690,0.37476,2667.7,2667.3,3.58261]
[1727426747886,0.785,2667.9,2667.3,3.2078]
[1727426748086,0.785,2667.9,2667.3,3.5826]
[1727426748497,0.37476,2667.7,2667.3,3.5826]
[1727426748793,0.37478,2667.6,2667.3,3.2078]
[1727426748990,0.785,2667.9,2667.3,3.2078]
[1727426748991,0.37476,2667.7,2667.3,3.2078]
[1727426749192,0.37477,2667.6,2667.3,3.2078]
[1727426750593,5.69130787,2667.9,2667.3,3.58116277]
[1727426750785,0.37474,2667.8,2667.4,0.3748]
[1727426750986,0.37474,2667.8,2667.3,3.58115277]
[1727426751287,0.37474,2667.8,2666.7,1.02424]
[1727426751288,0.37488,2666.8,2666.7,0.087]
[1727426751494,0.37488,2666.8,2666.2,1.1879]
[1727426751495,3.58269,2666.8,2666.2,1.1879]
[1727426751690,0.37491,2666.7,2666.2,1.1879]
[1727426751884,3.58269,2666.8,2666.2,1.1879]
[1727426752085,0.3749,2666.7,2666.2,1.1879]
[1727426752397,3.2078,2666.8,2666.2,1.56286]
[1727426752398,3.58269,2666.8,2666.2,1.56286]
[1727426752898,3.2078,2666.8,2666.2,1.1879]
[1727426753395,3.58269,2666.8,2666.2,1.1879]
[1727426754399,0.3749,2666.7,2666.2,1.1879]
[1727426755897,3.2078,2666.5,2666.2,1.56286]
[1727426756797,3.2078,2666.5,2666.2,1.1879]
[1727426757298,3.2078,2666.5,2666.3,3.22]
[1727426757496,3.2078,2666.8,2666.3,3.22]
[1727426757705,3.58269,2666.8,2666.3,3.22]
[1727426757900,3.2078,2666.8,2666.3,3.22]
[1727426758199,3.2078,2666.8,2666.4,0.37494]
[1727426758389,3.2078,2666.8,2666.3,3.22]
[1727426758390,3.58269,2666.8,2666.3,3.59495]
[1727426759494,3.58269,2666.8,2666.3,3.22]
[1727426759495,0.3749,2666.7,2666.3,3.22]
[1727426759801,3.58268,2666.8,2666.3,3.59495]
[1727426760497,0.3749,2666.7,2666.3,3.59495]
[1727426760696,3.58269,2666.8,2666.3,3.59495]
[1727426760895,0.3749,2666.7,2666.3,3.59495]
[1727426761094,3.58269,2666.8,2666.3,3.59495]
[1727426761286,3.2078,2666.8,2666.3,3.59495]
[1727426761491,0.3749,2666.7,2666.3,3.59495]
[1727426761692,3.58269,2666.8,2666.3,3.59495]
[1727426762492,0.37492,2666.6,2666.3,3.22]
[1727426762698,3.2078,2666.8,2666.3,3.59494]
[1727426762896,3.2078,2666.5,2666.3,3.22]
[1727426763398,3.2078,2666.5,2666.4,4.12534]
[1727426763700,3.2078,2666.5,2666.4,3.7504]
[1727426763886,3.2078,2666.5,2666.4,4.12534]
[1727426764499,3.2078,2666.5,2666.4,3.7504]
[1727426765602,3.58273,2666.5,2666.2,1.1879]
[1727426766203,3.58273,2666.5,2666.2,1.56287]
[1727426766402,3.2078,2666.5,2666.2,1.56287]
[1727426766701,3.2078,2666.5,2666.2,1.56286]
[1727426767496,3.58273,2666.5,2666.2,1.56286]
[1727426767696,3.2078,2666.5,2666.2,1.56286]
[1727426769505,3.2078,2666.5,2666.3,0.37495]
[1727426770201,3.2078,2666.5,2666.2,1.1879]
[1727426770403,3.2078,2666.5,2666.3,0.37495]
[1727426771116,11.90330787,2667.7,2666.3,6.9704]
[1727426771117,3.2078,2666.8,2666.3,6.9704]
[1727426771401,3.2078,2666.8,2666.6,0.37491]
[1727426771606,3.2078,2666.8,2666.7,1.5666]
[1727426775098,3.2078,2667.3,2666.7,10.9413]
[1727426775302,3.2078,2667.3,2667.1,3.59483]
[1727426775506,3.2078,2667.3,2666.5,3.2078]
[1727426775705,4.078,2667.8,2666.0,3.307]
[1727426775706,0.37492,2666.6,2666.0,3.307]
[1727426776004,3.2078,2666.4,2666.2,0.7887]
[1727426777504,3.2078,2666.4,2666.2,0.3877]
[1727426777707,3.99024,2666.4,2666.2,0.3877]
[1727426777909,3.99024,2666.4,2665.7,0.401]
[1727426777910,3.99025,2666.4,2665.7,0.401]
[1727426778105,3.99025,2666.4,2665.9,1.1676]
[1727426778310,3.99025,2666.4,2666.0,0.37499]
[1727426778612,3.6153,2666.4,2665.9,1.1676]
[1727426778803,3.6153,2666.4,2665.9,1.16761]
[1727426779002,0.37496,2666.3,2665.9,1.16761]
[1727426781117,3.2078,2666.1,2665.9,0.7926]
[1727426781508,3.2078,2666.1,2665.9,1.16761]
[1727426781712,3.2078,2666.1,2666.0,0.37499]
[1727426782111,0.386,2666.6,2666.4,0.37493]
[1727426782309,3.2078,2666.7,2666.5,3.22]
[1727426782507,0.087,2667.2,2666.8,0.37488]
[1727426782508,3.2078,2667.1,2666.8,0.37488]
[1727426782712,3.2078,2667.1,2666.8,0.37487]
[1727426783207,3.2078,2667.4,2667.0,3.22]
[1727426783516,3.2078,2667.8,2667.6,0.37476]
[1727426784609,3.2078,2667.8,2667.5,3.22]
[1727426784804,3.2078,2667.8,2667.7,0.37476]
[1727426785419,3.2078,2667.8,2667.7,7.34356]
[1727426785718,3.2078,2668.2,2667.9,0.37472]
[1727426785920,3.2078,2668.2,2668.0,0.37471]
[1727426786519,0.7542,2668.3,2667.9,0.37472]
[1727426786910,3.2078,2668.2,2667.9,0.37472]
[1727426787728,3.2078,2668.2,2667.9,3.22]
[1727426788517,3.2078,2668.2,2668.0,0.3747]
[1727426789133,3.2078,2668.2,2667.9,3.59472]
[1727426789414,3.2078,2668.2,2667.8,0.37474]
[1727426790112,3.2078,2668.2,2667.8,35.87474]
[1727426790617,3.58249,2668.2,2667.8,35.5]
[1727426790915,3.2078,2668.2,2667.8,35.87474]
[1727426791119,3.58249,2668.2,2667.8,35.87474]
[1727426791316,3.2078,2668.2,2667.8,35.87474]
[1727426792414,3.2078,2668.2,2668.0,0.37471]
[1727426792818,3.2078,2668.2,2668.1,0.3747]
[1727426793008,3.2078,2668.2,2668.1,0.747]
[1727426793817,3.2078,2668.2,2668.1,4.495]
[1727426794615,3.2078,2668.2,2668.1,0.747]
[1727426794816,3.2078,2668.2,2668.1,4.495]
[1727426795226,3.2078,2668.2,2668.1,4.8864]
[1727426795614,3.2078,2668.2,2668.1,5.2847]
[1727426796634,2.5923,2668.2,2668.1,5.2847]
[1727426797423,3.58242,2668.7,2668.2,0.37468]
[1727426797618,3.58242,2668.7,2668.3,0.37466]
[1727426797823,0.37463,2668.6,2668.2,0.37468]
[1727426798121,3.2078,2668.7,2668.1,1.53669]
[1727426798122,0.37465,2668.5,2668.1,1.53669]
[1727426798311,3.2078,2668.4,2668.1,1.1384]
[1727426798719,3.2078,2668.4,2668.0,3.22]
[1727426798720,3.2078,2668.4,2667.8,6.4278]
[1727426799019,0.74637,2668.3,2667.9,0.37472]
[1727426799411,0.3717,2668.3,2667.9,0.37472]
[1727426799911,0.74637,2668.3,2667.9,0.37472]
[1727426800414,0.3717,2668.3,2667.9,0.37472]
[1727426800726,0.74637,2668.3,2667.9,0.37472]
[1727426800920,0.74637,2668.3,2667.8,6.80254]
[1727426800921,0.37469,2668.2,2667.8,6.80254]
[1727426801126,1.12078,2668.3,2667.9,0.37472]
[1727426801423,1.12078,2668.3,2667.7,0.7855]
[1727426801424,3.9661,2668.3,2667.7,0.7855]
[1727426801725,0.37469,2668.2,2667.8,0.37474]
[1727426802225,1.12078,2668.3,2667.8,0.37474]
[1727426803220,0.37469,2668.2,2667.8,0.37474]
[1727426804327,4.32858,2668.3,2667.9,0.37472]
[1727426804517,3.9539,2668.3,2667.7,0.7855]
[1727426804715,3.9539,2668.3,2668.0,0.37471]
[1727426804921,3.9539,2668.3,2668.0,0.3747]
[1727426805121,3.9539,2668.3,2668.1,0.37469]
[1727426806120,0.7461,2668.3,2668.1,0.37469]
[1727426806927,0.7461,2668.3,2668.0,0.37471]
[1727426807524,1.12078,2668.3,2667.9,0.37472]
[1727426807718,0.37469,2668.2,2667.8,0.37473]
[1727426808324,1.12078,2668.3,2667.9,0.37473]
[1727426811732,1.12078,2668.3,2668.0,0.37471]
[1727426812031,0.7461,2668.3,2668.0,0.37471]
[1727426812328,0.7461,2668.3,2667.7,4.0055]
[1727426812329,1.12077,2668.3,2667.9,0.37472]
[1727426812531,0.7461,2668.3,2668.0,0.37471]
[1727426814120,1.12077,2668.3,2667.9,0.37472]
[1727426814325,0.7461,2668.3,2668.0,0.37471]
[1727426815024,1.12077,2668.3,2668.0,0.37471]
[1727426815922,1.12077,2668.3,2667.8,3.2078]
[1727426816123,0.7461,2668.3,2668.0,0.37471]
[1727426817529,1.12078,2668.3,2668.0,0.37471]
[1727426818131,0.37468,2668.3,2668.0,0.37471]
[1727426818330,3.58246,2668.4,2668.1,0.75069]
[1727426819438,3.58246,2668.4,2668.1,0.376]
[1727426821433,3.22,2668.3,2667.7,1.16025]
[1727426821629,3.22,2668.1,2667.8,0.37474]
[1727426822038,3.603,2668.1,2667.8,0.37474]
[1727426822435,3.603,2668.1,2667.7,36.2855]
[1727426822741,3.603,2668.1,2667.8,0.37473]
[1727426822939,0.383,2668.1,2667.7,36.66025]
[1727426823135,0.37472,2668.0,2667.7,36.27165]
[1727426823336,0.75771,2668.1,2667.8,0.37474]
[1727426823638,0.37472,2668.0,2667.7,0.77165]
[1727426824041,0.383,2668.1,2667.8,0.37474]
[1727426824042,0.75771,2668.1,2667.8,0.37474]
[1727426824236,0.75771,2668.1,2667.7,0.77165]
[1727426824436,3.97771,2668.1,2667.7,0.37475]
[1727426824643,0.383,2668.1,2667.9,0.37473]
[1727426825944,0.386,2668.2,2668.0,0.37471]
[1727426826140,0.386,2668.2,2668.1,0.3747]
[1727426826438,0.386,2668.2,2668.0,0.37471]
[1727426829746,0.386,2668.2,2667.8,0.3773]
[1727426829956,0.386,2668.2,2668.0,0.37471]
[1727426831440,0.386,2668.2,2667.9,0.4071]
[1727426831650,0.386,2668.2,2668.0,0.37471]
[1727426832038,0.386,2668.2,2667.9,0.4071]
[1727426832447,0.386,2668.2,2668.0,0.3747]
[1727426832842,0.386,2668.2,2668.1,0.3747]
[1727426833042,4.90630787,2668.6,2668.3,0.37467]
[1727426833242,8.70242,2668.7,2668.0,3.22]
[1727426833444,4.62442,2668.7,2668.4,0.37466]
[1727426834052,3.58242,2668.7,2668.4,0.37466]
[1727426834354,0.37469,2668.2,2667.9,0.4071]
[1727426834547,0.4053,2668.1,2668.0,0.37471]
[1727426836449,0.4053,2668.1,2667.9,0.78182]
[1727426840053,5.31160787,2668.1,2667.9,0.78182]
[1727426840353,5.31160787,2668.1,2668.0,0.37471]
[1727426840757,5.31160787,2668.1,2667.9,0.78182]
[1727426841552,5.31160787,2668.1,2668.0,0.37471]
[1727426842351,4.90630787,2668.1,2667.9,0.78182]
[1727426842859,4.90630787,2668.1,2667.9,0.78183]
[1727426844055,4.90630787,2668.1,2668.0,0.37471]
[1727426844357,4.90630787,2668.1,2667.9,0.78182]
[1727426845667,4.90630787,2668.0,2667.9,0.78182]
[1727426845861,4.90630787,2668.0,2667.5,3.2078]
[1727426846048,0.37475,2667.8,2667.5,3.58258]
[1727426846362,4.90630787,2667.7,2667.5,3.58258]
[1727426846957,4.74034,2667.9,2667.5,3.58258]
[1727426847259,0.37474,2667.8,2667.5,3.58258]
[1727426847460,0.37477,2667.6,2667.5,3.2078]
[1727426847853,0.37474,2667.8,2667.5,3.2078]
[1727426848052,0.37475,2667.8,2667.5,3.2078]
[1727426848368,0.37476,2667.7,2667.5,3.2078]
[1727426849852,3.2078,2667.6,2667.4,0.376]
[1727426850053,0.37478,2667.5,2667.2,0.786]
[1727426850262,0.74848,2667.5,2667.2,0.786]
[1727426850464,0.3737,2667.5,2667.2,1.16083]
[1727426850856,0.3748,2667.4,2667.1,0.397]
[1727426851057,0.3737,2667.5,2667.2,0.37482]
[1727426851260,0.74849,2667.5,2667.2,0.37482]
[1727426851668,0.3748,2667.4,2667.1,0.77183]
[1727426852062,0.74849,2667.5,2667.1,0.77183]
[1727426852260,0.74849,2667.5,2667.2,0.37483]
[1727426852459,0.3737,2667.5,2667.2,0.37483]
[1727426852963,0.3737,2667.5,2667.3,0.37481]
[1727426853359,0.3737,2667.5,2667.2,0.74872]
[1727426854458,0.74849,2667.5,2667.2,0.74872]
[1727426854853,0.3737,2667.5,2667.2,0.74872]
[1727426855760,0.3737,2667.5,2667.3,0.37481]
[1727426856469,0.3737,2667.5,2667.2,0.74872]
[1727426857857,0.3737,2667.5,2667.2,0.3739]
[1727426858464,0.3737,2667.5,2667.1,0.397]
[1727426858465,0.37481,2667.4,2667.1,0.397]
[1727426858664,0.76251,2667.4,2667.1,0.397]
[1727426859366,3.2078,2667.3,2667.1,0.397]
[1727426859977,3.2078,2667.3,2667.1,0.77183]
[1727426861478,3.2078,2667.3,2667.1,0.397]
[1727426861767,3.2078,2667.3,2667.1,0.77184]
[1727426861970,3.2078,2667.3,2667.1,0.397]
[1727426862178,0.37483,2667.2,2667.1,0.397]
[1727426862964,4.6978,2667.3,2667.0,0.3914]
[1727426862965,0.37484,2667.1,2667.0,0.3914]
[1727426863166,0.3803,2667.1,2667.0,0.3914]
[1727426863376,0.75514,2667.1,2667.0,0.3914]
[1727426863674,0.3803,2667.1,2667.0,0.3914]
[1727426865966,3.58262,2667.3,2667.0,0.76625]
[1727426867082,3.58262,2667.3,2667.0,0.3914]
[1727426869788,3.2078,2667.6,2667.5,0.37478]
[1727426870081,3.2078,2667.6,2667.2,3.22]
[1727426870284,3.2078,2667.6,2667.5,0.37478]
[1727426871278,4.078,2667.8,2667.7,0.37476]
[1727426871983,3.59471,2668.1,2667.7,0.37476]
[1727426872176,3.59471,2668.1,2667.8,0.7426]
[1727426872481,3.2078,2668.2,2667.9,0.37473]
[1727426872677,3.2078,2668.2,2668.0,0.3824]
[1727426872879,3.58249,2668.2,2668.0,0.3824]
[1727426876080,3.2078,2668.2,2668.0,0.3824]
[1727426876381,3.58249,2668.2,2668.0,0.3824]
[1727426876580,3.2078,2668.2,2668.0,0.3824]
[1727426876973,0.376,2668.3,2668.1,0.3747]
[1727426877476,0.376,2668.3,2668.2,0.3834]
[1727426878175,6.4278,2668.5,2668.2,0.3834]
[1727426878375,3.2078,2668.5,2668.3,0.3967]
[1727426879481,3.2078,2668.5,2668.3,0.77137]
[1727426879681,3.2078,2668.5,2668.4,0.37466]
[1727426880584,3.2078,2668.5,2668.3,0.77136]
[1727426880885,3.2078,2668.5,2668.3,0.77137]
[1727426881885,3.2078,2668.5,2668.3,0.3967]
[1727426882088,0.76836,2668.4,2668.3,0.3967]
[1727426882586,0.76836,2668.4,2668.2,0.3834]
[1727426883178,0.3937,2668.4,2668.2,0.3834]
[1727426884085,3.2078,2668.5,2668.2,0.3834]
[1727426884281,3.2078,2668.5,2668.4,0.37466]
[1727426885084,0.37463,2668.6,2668.2,0.75807]
[1727426885283,3.5844,2668.8,2668.3,0.37467]
[1727426885284,0.37462,2668.7,2668.3,0.37467]
[1727426885488,3.95901,2668.8,2668.3,0.37467]
[1727426885879,3.95901,2668.8,2668.4,0.37466]
[1727426886283,3.5844,2668.8,2668.3,0.37467]
[1727426886484,3.95902,2668.8,2668.3,0.37467]
[1727426886885,3.95902,2668.8,2668.4,0.37466]
[1727426888281,0.37462,2668.7,2668.3,0.37467]
[1727426890085,3.95901,2668.8,2668.4,0.37465]
[1727426890597,0.37462,2668.7,2668.3,0.37466]
[1727426890783,3.95901,2668.8,2668.4,0.37466]
[1727426891291,3.5844,2668.8,2668.2,0.3834]
[1727426891494,3.5844,2668.8,2668.5,0.37464]
[1727426893197,0.3766,2668.8,2668.7,0.37462]
[1727426893395,3.2078,2669.1,2668.9,0.37459]
[1727426893688,0.3943,2669.1,2668.6,39.8653]
[1727426893991,0.76886,2669.1,2668.8,0.37459]
[1727426894189,0.37458,2669.0,2668.7,0.37461]
[1727426894395,3.97666,2669.1,2668.7,0.37461]
[1727426894797,0.37458,2669.0,2668.6,37.01992]
[1727426894989,3.6021,2669.1,2668.6,0.7688]
[1727426895185,0.37458,2669.0,2668.6,1.14342]
[1727426895386,3.97667,2669.1,2668.6,1.1453]
[1727426895585,3.97667,2669.1,2668.7,0.37461]
[1727426895892,1.9772,2669.1,2668.6,1.1453]
[1727426896192,3.2078,2669.9,2668.9,3.22]
[1727426896495,0.3943,2669.6,2669.3,3.59452]
[1727426896891,0.3943,2669.6,2669.3,3.59453]
[1727426897195,0.3943,2669.6,2669.4,0.37452]
[1727426897380,0.3943,2669.6,2669.3,3.59453]
[1727426897788,0.3943,2669.6,2669.3,3.22]
[1727426898184,0.3791,2669.5,2669.3,3.22]
[1727426901296,0.3791,2669.5,2669.3,3.59453]
[1727426902300,0.3791,2669.5,2669.4,0.37452]
[1727426902696,0.3943,2669.6,2669.5,0.3745]
[1727426902891,0.3943,2669.6,2669.5,3.5945]
[1727426903086,0.3994,2669.9,2669.5,3.22]
[1727426903393,0.8051,2669.9,2669.7,0.37447]
[1727426904296,0.8051,2669.9,2669.6,0.37448]
[1727426906787,0.8051,2669.9,2669.5,3.5945]
[1727426906997,1.17956,2669.9,2669.5,3.22]
[1727426907297,4.38736,2669.9,2669.5,3.22]
[1727426907598,0.37447,2669.8,2669.5,3.22]
[1727426907995,0.37448,2669.7,2669.5,3.22]
[1727426908705,0.37448,2669.7,2669.4,0.7947]
[1727426908914,0.37447,2669.8,2669.4,0.7947]
[1727426909398,0.37447,2669.8,2669.4,0.3851]
[1727426909796,0.37448,2669.7,2669.4,0.3851]
[1727426910001,0.37447,2669.8,2669.4,0.3851]
[1727426910903,4.38735,2669.9,2669.4,0.3851]
[1727426911108,4.38735,2669.9,2669.5,0.7761]
[1727426912097,0.8051,2669.9,2669.5,1.1506]
[1727426912397,1.17955,2669.9,2669.5,0.7761]
[1727426913097,0.37446,2669.8,2669.5,0.7761]
[1727426913297,1.17955,2669.9,2669.5,0.7761]
[1727426913498,0.8051,2669.9,2669.5,0.7761]
[1727426914001,0.37447,2669.8,2669.5,0.7761]
[1727426915097,1.17955,2669.9,2669.5,1.1506]
[1727426915297,0.8051,2669.9,2669.5,0.7761]
[1727426915494,0.37447,2669.8,2669.5,0.7761]
[1727426917204,0.37448,2669.7,2669.5,0.7761]
[1727426917605,0.37447,2669.8,2669.5,0.7761]
[1727426919304,0.8051,2669.9,2669.3,3.2078]
[1727426919503,4.68176,2669.8,2669.1,0.37456]
[1727426919702,0.37452,2669.4,2669.0,3.58236]
[1727426919906,0.8105,2669.3,2669.0,3.58236]
[1727426920210,0.8105,2669.3,2669.1,0.37456]
[1727426920413,0.4059,2669.3,2669.2,0.37455]
[1727426922515,0.4059,2669.3,2669.1,3.59455]
[1727426923110,0.4059,2669.3,2669.2,0.37455]
[1727426926905,0.4059,2669.3,2669.1,3.22]
[1727426926906,0.4059,2669.3,2669.1,3.59455]
[1727426927102,0.4059,2669.3,2669.1,3.22]